{"text_format":"1","workbook":"xlsx","n_sheets":4,"sheets":["Cover Sheet - Deckblatt","Test Results No. 1","Test Results No. 2","Values"],"not_rendered":{"charts":0,"images":1,"macros":1,"external_links":0,"defined_names":1,"comments":0,"pivot_tables":0},"unopened":[],"bounds":{"document_bytes":16777216,"sheet_cells":100000,"rows_first":2000,"rows_last":500,"rows_between":2000,"halvings":0,"cell_chars":16384,"cell_head_chars":4096},"cells_cut":0,"cells_raw":0,"read":"whole","date_system":"1900"}

{"sheet":"Cover Sheet - Deckblatt","index":0,"n_rows":65,"n_cols":46,"rows_kept":65,"cut":false,"hidden":false,"merged":[[0,1,0,15],[12,1,12,20],[13,1,13,20],[14,1,14,20],[15,1,15,20],[28,15,28,21],[28,1,28,14],[6,1,6,20],[7,1,7,20],[8,1,8,20],[1,0,1,44],[2,43,2,44],[18,0,18,44],[9,1,9,20],[5,1,5,20],[30,34,30,44],[29,1,29,7],[29,8,29,16],[29,43,29,44],[28,23,28,31],[28,32,28,43],[33,1,33,7],[29,20,29,21],[29,30,29,39],[30,23,30,33],[53,17,53,20],[36,9,36,21],[48,2,48,5],[55,17,55,20],[56,1,56,9],[58,7,58,20],[51,17,52,20],[56,10,56,20],[54,1,54,15],[54,17,54,20],[57,16,57,27],[45,23,45,43],[49,5,49,8],[51,1,51,8],[49,1,49,4],[55,1,55,14],[53,1,53,15],[51,21,51,44],[58,31,58,43],[48,23,48,43],[49,23,49,43],[37,23,37,33],[38,1,38,6],[47,23,47,43],[46,23,46,43],[44,31,44,43],[46,7,46,20],[45,7,45,20],[44,7,44,20],[34,1,34,7],[31,8,31,21],[34,34,34,44],[36,37,36,44],[37,7,37,20],[37,34,37,44],[31,34,31,44],[32,34,32,44],[33,34,33,44],[31,23,31,33],[34,8,34,21],[34,23,34,33],[32,8,32,21],[33,8,33,21],[33,23,33,33],[32,23,32,33],[64,25,64,29],[64,20,64,24],[58,23,58,30],[64,30,64,34],[62,23,62,43],[59,23,59,43],[60,7,60,20],[60,23,60,43],[59,7,59,20],[64,5,64,9],[61,23,61,43],[58,1,58,6],[63,23,63,43],[61,1,61,6],[62,1,62,6],[62,7,62,20],[64,35,64,39],[64,40,64,44],[59,1,59,6],[60,1,60,6],[63,1,63,4],[64,10,64,14],[64,15,64,19],[61,7,61,20],[64,1,64,4],[35,8,35,21],[30,1,30,7],[30,8,30,21],[63,9,63,12],[63,5,63,8],[63,15,63,21],[38,7,38,20],[47,7,47,20],[31,1,31,7],[32,1,32,7],[37,1,37,6],[49,13,49,20],[49,9,49,12],[39,7,39,20],[39,1,39,6],[48,7,48,19],[57,1,57,12],[42,1,42,8],[43,1,43,41],[44,1,44,6],[46,1,46,6],[44,23,44,30],[45,1,45,6]]}
[null,{"$error":"#VALUE!"},null,null,null,null,null,null,null,null,null,null,null,null,null,null,null,null,null,null,null,null,null,null,null,null,null,{"$f":"IF(AS1=1,\"Quality assurance\",\"Qualitätssicherung\")","v":"Qualitätssicherung"},null,null,null,null,null,null,null,null,null,null,null,null,null,null,null,null,2]
[{"$f":"IF(AS1=1,\"Cover Sheet\",\"Deckblatt\")","v":"Deckblatt"}]
[null,null,null,1]
[]
[null,{"$f":"IF(AS1=1,\"Sender\",\"Absender\")","v":"Absender"},null,null,null,null,null,null,null,null,null,null,null,null,null,null,null,null,null,null,null,null,null,{"$f":"IF(AS1=1,\"Initial sample inspection report VDA\",\"Erstmusterprüfbericht VDA\")","v":"Erstmusterprüfbericht VDA"}]
[null,null,null,null,null,null,null,null,null,null,null,null,null,null,null,null,null,null,null,null,null,null,null,{"$f":"IF(AS1=1,\"Initial sample inspection\",\"Erstbemusterung\")","v":"Erstbemusterung"}]
[null,null,null,null,null,null,null,null,null,null,null,null,null,null,null,null,null,null,null,null,null,null,null,{"$f":"IF(AS1=1,\"Subsequent sample inspection\",\"Nachbemusterung\")","v":"Nachbemusterung"}]
[null,null,null,null,null,null,null,null,null,null,null,null,null,null,null,null,null,null,null,null,null,null,null,{"$f":"IF(AS1=1,\"New Part\",\"Neuteil\")","v":"Neuteil"}]
[null,null,null,null,null,null,null,null,null,null,null,null,null,null,null,null,null,null,null,null,null,null,null,{"$f":"IF(AS1=1,\"Product modification\",\"Produkt-Änderung\")","v":"Produkt-Änderung"}]
[null,null,null,null,null,null,null,null,null,null,null,null,null,null,null,null,null,null,null,null,null,null,null,{"$f":"IF(AS1=1,\"Production relocation\",\"Produktionsverlagerung\")","v":"Produktionsverlagerung"}]
[null,null,null,null,null,null,null,null,null,null,null,null,null,null,null,null,null,null,null,null,null,null,null,{"$f":"IF(AS1=1,\"Change of production process\",\"Änderung von Produktionsverfahren\")","v":"Änderung von Produktionsverfahren"}]
[null,{"$f":"IF(AS1=1,\"Address\",\"Adresse\")","v":"Adresse"},null,null,null,null,null,null,null,null,null,null,null,null,null,null,null,null,null,null,null,null,null,{"$f":"IF(AS1=1,\"Longer stoppage of production\",\"Längeres Aussetzten der Fertigung\")","v":"Längeres Aussetzten der Fertigung"}]
[null,null,null,null,null,null,null,null,null,null,null,null,null,null,null,null,null,null,null,null,null,null,null,{"$f":"IF(AS1=1,\"New sub-supplier\",\"Neuer Unterlieferant\")","v":"Neuer Unterlieferant"}]
[null,null,null,null,null,null,null,null,null,null,null,null,null,null,null,null,null,null,null,null,null,null,null,{"$f":"IF(AS1=1,\"Product with DwSpA\",\"Produkt mit DmbA\")","v":"Produkt mit DmbA"}]
[null,null,null,null,null,null,null,null,null,null,null,null,null,null,null,null,null,null,null,null,null,null,null,{"$f":"IF(AS1=1,\"Production / Inspection and Test Plan prepared\",\"Fertigungs- / Prüfplan erstellt\")","v":"Fertigungs- / Prüfplan erstellt"}]
[null,null,null,null,null,null,null,null,null,null,null,null,null,null,null,null,null,null,null,null,null,null,null,{"$f":"IF(AS1=1,\"FMEA finished\",\"FMEA durchgeführt\")","v":"FMEA durchgeführt"}]
[null,null,null,null,null,null,null,null,null,null,null,null,null,null,null,null,null,null,null,null,null,null,null,{"$f":"IF(AS1=1,\"inspection report, other samples\",\"Prüfbericht, sonstiger Muster\")","v":"Prüfbericht, sonstiger Muster"}]
[]
[{"$f":"IF(AS1=1,\"Appendices\",\"Anlagen\")","v":"Anlagen"}]
[null,null,"01",{"$f":"IF(AS1=1,\"Dimensional Check\",\"Maßprüfung\")","v":"Maßprüfung"},null,null,null,null,null,null,null,null,null,null,null,null,"09",{"$f":"IF(AS1=1,\"EMV Test\",\"EMV - Prüfung\")","v":"EMV - Prüfung"},null,null,null,null,null,null,null,null,null,null,null,null,null,"17",{"$f":"IF(AS1=1,\"Inspection and Test Equipment List\",\"Prüfmittelliste\")","v":"Prüfmittelliste"}]
[null,null,"02",{"$f":"IF(AS1=1,\"Functional Test\",\"Funktionsprüfung\")","v":"Funktionsprüfung"},null,null,null,null,null,null,null,null,null,null,null,null,"10",{"$f":"IF(AS1=1,\"Reliability Test\",\"Zuverlässigkeitsprüfung\")","v":"Zuverlässigkeitsprüfung"},null,null,null,null,null,null,null,null,null,null,null,null,null,"18",{"$f":"IF(AS1=1,\"Evidence of Inspection and Test Equipment Capability\",\"Prüfmittelfähigkeitsnachweis\")","v":"Prüfmittelfähigkeitsnachweis"}]
[null,null,"03",{"$f":"IF(AS1=1,\"Material Test\",\"Werkstoffprüfung\")","v":"Werkstoffprüfung"},null,null,null,null,null,null,null,null,null,null,null,null,"11",{"$f":"IF(AS1=1,\"Design - FMEA\",\"Design - FMEA\")","v":"Design - FMEA"},null,null,null,null,null,null,null,null,null,null,null,null,null,"19",{"$f":"IF(AS1=1,\"EU-Data Safety Sheet\",\"EU-Datensicherheitsblatt\")","v":"EU-Datensicherheitsblatt"}]
[null,null,"04",{"$f":"IF(AS1=1,\"Haptics\",\"Haptikprüfung\")","v":"Haptikprüfung"},null,null,null,null,null,null,null,null,null,null,null,null,"12",{"$f":"IF(AS1=1,\"Design Release\",\"Konstruktionsfreigabe\")","v":"Konstruktionsfreigabe"},null,null,null,null,null,null,null,null,null,null,null,null,null,"20",{"$f":"IF(AS1=1,\"Material data sheet IMDS\",\"Materialdatenblatt IMDS\")","v":"Materialdatenblatt IMDS"}]
[null,null,"05",{"$f":"IF(AS1=1,\"Acoustics\",\"Akustikprüfung\")","v":"Akustikprüfung"},null,null,null,null,null,null,null,null,null,null,null,null,"13",{"$f":"IF(AS1=1,\"Process FMEA\",\"Prozess - FMEA\")","v":"Prozess - FMEA"},null,null,null,null,null,null,null,null,null,null,null,null,null,"21",{"$f":"IF(AS1=1,\"Packaging\",\"Transportmittel / Verpackung\")","v":"Transportmittel / Verpackung"}]
[null,null,"06",{"$f":"IF(AS1=1,\"Odors\",\"Geruchsprüfung\")","v":"Geruchsprüfung"},null,null,null,null,null,null,null,null,null,null,null,null,"14",{"$f":"IF(AS1=1,\"Process Flow Chart\",\"Prozessablaufdiagramm\")","v":"Prozessablaufdiagramm"},null,null,null,null,null,null,null,null,null,null,null,null,null,"22",{"$f":"IF(AS1=1,\"Certificate\",\"Zertifikate\")","v":"Zertifikate"}]
[null,null,"07",{"$f":"IF(AS2=1,\"Appearance\",\"Aussehensprüfung\")","v":"Aussehensprüfung"},null,null,null,null,null,null,null,null,null,null,null,null,"15",{"$f":"IF(AS1=1,\"Control Plan\",\"Produktionslenkungsplan\")","v":"Produktionslenkungsplan"},null,null,null,null,null,null,null,null,null,null,null,null,null,"23",{"$f":"IF(AS1=1,\"Process acceptance\",\"Prozessabnahme\")","v":"Prozessabnahme"}]
[null,null,"08",{"$f":"IF(AS3=1,\"Surface Check\",\"Oberflächenprüfung\")","v":"Oberflächenprüfung"},null,null,null,null,null,null,null,null,null,null,null,null,"16",{"$f":"IF(AS1=1,\"Process Capability Evidence\",\"Prozessfähigkeitsnachweis\")","v":"Prozessfähigkeitsnachweis"},null,null,null,null,null,null,null,null,null,null,null,null,null,"24",{"$f":"IF(AS1=1,\"Others\",\"Sonstiges\")","v":"Sonstiges"}]
[]
[null,{"$f":"IF(AS1=1,\"Code number, supplier:\",\"Kennnummer Lieferant\")","v":"Kennnummer Lieferant"},null,null,null,null,null,null,null,null,null,null,null,null,null,null,null,null,null,null,null,null,null,{"$f":"IF(AS1=1,\"Code number, customer:\",\"Kennnummer Kunde:\")","v":"Kennnummer Kunde:"}]
[null,{"$f":"IF(AS1=1,\"Inspection report No.:\",\"Prüfberichtsnummer\")","v":"Prüfberichtsnummer"},null,null,null,null,null,null,null,null,null,null,null,null,null,null,null,null,null,{"$f":"IF(AS1=1,\"Revision:\",\"Version\")","v":"Version"},null,null,null,{"$f":"IF(AS1=1,\"Inspection report No.:\",\"Prüfberichtsnummer\")","v":"Prüfberichtsnummer"},null,null,null,null,null,null,null,null,null,null,null,null,null,null,null,null,null,null,{"$f":"IF(AS1=1,\"Revision:\",\"Version\")","v":"Version"}]
[null,{"$f":"IF(AS1=1,\"Part No.:\",\"Sachnummer:\")","v":"Sachnummer:"},null,null,null,null,null,null,null,null,null,null,null,null,null,null,null,null,null,null,null,null,null,{"$f":"IF(AS1=1,\"Part No.:\",\"Sachnummer:\")","v":"Sachnummer:"}]
[null,{"$f":"IF(AS1=1,\"Drawing Number:\",\"Zeichnungsnummer:\")","v":"Zeichnungsnummer:"},null,null,null,null,null,null," ",null,null,null,null,null,null,null,null,null,null,null,null,null,null,{"$f":"IF(AS1=1,\"Drawing Number:\",\"Zeichnungsnummer:\")","v":"Zeichnungsnummer:"}]
[null,{"$f":"IF(AS1=1,\"Status / Date:\",\"Stand / Datum:\")","v":"Stand / Datum:"},null,null,null,null,null,null,null,null,null,null,null,null,null,null,null,null,null,null,null,null,null,{"$f":"IF(AS1=1,\"Status / Date:\",\"Stand / Datum:\")","v":"Stand / Datum:"}]
[null,{"$f":"IF(AS1=1,\"Modification Number:\",\"Änderungsnummer:\")","v":"Änderungsnummer:"},null,null,null,null,null,null," ",null,null,null,null,null,null,null,null,null,null,null,null,null,null,{"$f":"IF(AS1=1,\"Modifikation Number:\",\"Änderungsnummer:\")","v":"Änderungsnummer:"}]
[null,{"$f":"IF(AS1=1,\"Part description:\",\"Benennung:\")","v":"Benennung:"},null,null,null,null,null,null,null,null,null,null,null,null,null,null,null,null,null,null,null,null,null,{"$f":"IF(AS1=1,\"Part description:\",\"Benennung:\")","v":"Benennung:"}]
[null,{"$f":"IF(AS1=1,\"Order Call-off No./Date:\",\"Bestellabruf-Nr./Datum:\")","v":"Bestellabruf-Nr./Datum:"}]
[null,{"$f":"IF(AS1=1,\"Delivery Note No./ Date:\",\"Lieferschein-Nr./ -Datum\")","v":"Lieferschein-Nr./ -Datum"},null,null,null,null,null,null,null,null,null,null,null,null,null,null,null,null,null,null,null,null,null,{"$f":"IF(AS1=1,\"Incoming Goods No./ Date\",\"Wareneingangs-Nr./-Datum\")","v":"Wareneingangs-Nr./-Datum"}]
[null,{"$f":"IF(AS1=1,\"Quantity delivered:\",\"Liefermenge:\")","v":"Liefermenge:"},null,null,null,null,null,null,null,null,null,null,null,null,null,null,null,null,null,null,null,null,null,{"$f":"IF(AS1=1,\"Delivery Destination:\",\"Abladestelle:\")","v":"Abladestelle:"}]
[null,{"$f":"IF(AS1=1,\"Charge Number:\",\"Chargennummer:\")","v":"Chargennummer:"},null,null,null,null,null,null,null,null,null,null,null,null,null,null,null,null,null,null,null,null,null,null,null,null,null,null,null,null,null,null,null,null,null,null,null,null,null,null,null,null,null,null,null," "]
[null,{"$f":"IF(AS1=1,\"Sample Weight\",\"Mustergewicht\")","v":"Mustergewicht"}]
[]
[]
[null,{"$f":"IF(AS1=1,\"Supplier Confirmation\",\"Bestätigung Lieferant\")","v":"Bestätigung Lieferant"}]
[null,{"$f":"IF(AS1=1,\"It is hereby confirmed, that the sampling has been carried out according to VDA Volume 2 Chapter 4\",\"Hiermit wird bestätigt, dass die Bemusterungen entsprechend der VDA Schrift 2 Ziffer 4 durchgeführt worden sind.\")","v":"Hiermit wird bestätigt, dass die Bemusterungen entsprechend der VDA Schrift 2 Ziffer 4 durchgeführt worden sind."}]
[null,{"$f":"IF(AS1=1,\"Name:\",\"Name:\")","v":"Name:"},null,null,null,null,null,null,null,null,null,null,null,null,null,null,null,null,null,null,null,null,null,{"$f":"IF(AS1=1,\"Comment:\",\"Bemerkung:\")","v":"Bemerkung:"}]
[null,{"$f":"IF(AS1=1,\"Department:\",\"Abteilung:\")","v":"Abteilung:"}]
[null,{"$f":"IF(AS1=1,\"Telephone/Fax/E-Mail:\",\"Telefon/ Fax / e-Mail:\")","v":"Telefon/ Fax / e-Mail:"}]
[]
[]
[null,{"$f":"IF(AS1=1,\"Date:\",\"Datum:\")","v":"Datum:"},null,null,null," ",null,null,null,{"$f":"IF(AS1=1,\"Signature:\",\"Unterschrift:\")","v":"Unterschrift:"}]
[]
[null,{"$f":"IF(AS1=1,\"Customer Decision:\",\"Entscheidung Kunde:\")","v":"Entscheidung Kunde:"},null,null,null,null,null,null,null,null,null,null,null,null,null,null,null,{"$f":"IF(AS1=1,\"Overall\",\"gesamt\")","v":"gesamt"},null,null,null,{"$f":"IF(AS1=1,\"According to Appendix:\",\"gemäß Anlage:\")","v":"gemäß Anlage:"}]
[null,null,null,null,null,null,null,null,null,null,null,null,null,null,null,null,null,null,null,null,null,"01","02","03","04","05","06","07","08","09","10","11","12","13","14","15","16","17","18","19","20","21","22","23","24"]
[null,{"$f":"IF(AS1=1,\"Approved\",\"frei\")","v":"frei"}]
[null,{"$f":"IF(AS1=1,\"Conditionally approved\",\"frei mit Auflage\")","v":"frei mit Auflage"}]
[null,{"$f":"IF(AS1=1,\"Rejected, re-sampling necessary\",\"abgelehnt, Nachbemusterung erforderlich\")","v":"abgelehnt, Nachbemusterung erforderlich"}]
[null,{"$f":"IF(AS1=1,\"Concession No.:\",\"Sonderfreigabe No.:\")","v":"Sonderfreigabe No.:"}]
[null,{"$f":"IF(AS1=1,\"When returning, Delivery note No./Date:\",\"bei Rücksendung Lieferschein-Nr./ -datum:\")","v":"bei Rücksendung Lieferschein-Nr./ -datum:"}]
[null,{"$f":"IF(AS1=1,\"Name:\",\"Name:\")","v":"Name:"},null,null,null,null,null,null,null,null,null,null,null,null,null,null,null,null,null,null,null,null,null,{"$f":"IF(AS1=1,\"Comment:\",\"Bemerkung:\")","v":"Bemerkung:"}]
[null,{"$f":"IF(AS1=1,\"Department:\",\"Abteilung:\")","v":"Abteilung:"}]
[null,{"$f":"IF(AS1=1,\"Telephone/Fax/E-Mail:\",\"Telefon/ Fax / e-Mail:\")","v":"Telefon/ Fax / e-Mail:"}]
[null,{"$f":"IF(AS1=1,\"Date:\",\"Datum:\")","v":"Datum:"}]
[null,{"$f":"IF(AS1=1,\"Signature\",\"Unterschrift\")","v":"Unterschrift"}]
[]
[null,{"$f":"IF(AS1=1,\"Distribution\",\"Verteiler\")","v":"Verteiler"}]

{"sheet":"Test Results No. 1","index":1,"n_rows":121,"n_cols":37,"rows_kept":121,"cut":false,"hidden":false,"merged":[[0,1,0,15],[73,3,75,16],[76,2,78,2],[76,3,78,16],[67,2,69,2],[67,3,69,16],[70,2,72,2],[70,3,72,16],[61,2,63,2],[64,3,66,16],[1,0,1,37],[2,32,2,35],[2,36,2,37],[4,2,6,2],[4,3,6,16],[4,20,7,37],[7,2,9,2],[7,3,9,16],[64,2,66,2],[61,3,63,16],[8,20,11,37],[10,3,12,16],[49,2,51,2],[49,3,51,16],[115,26,115,36],[116,26,116,36],[114,1,114,17],[114,35,114,37],[112,5,112,17],[112,35,112,37],[73,2,75,2],[113,35,113,37],[86,24,86,28],[93,19,93,21],[93,22,93,24],[91,19,92,33],[91,34,91,37],[92,34,92,35],[92,36,92,37],[86,20,86,23],[91,0,91,1],[91,2,92,18],[93,0,93,1],[93,2,93,18],[108,0,108,1],[108,2,108,18],[108,19,108,21],[108,22,108,24],[119,2,119,5],[119,8,119,16],[115,1,115,3],[109,0,109,1],[109,2,109,18],[107,0,107,1],[119,27,119,35],[116,20,116,24],[118,7,118,17],[118,26,118,36],[117,1,117,6],[117,7,117,17],[117,20,117,25],[117,26,117,36],[119,21,119,24],[115,20,115,22],[116,1,116,5],[115,7,115,17],[116,7,116,17],[110,0,110,1],[110,2,110,18],[110,19,110,21],[110,22,110,24],[113,1,113,17],[110,36,110,37],[109,25,109,27],[109,28,109,30],[109,31,109,33],[109,34,109,35],[109,36,109,37],[110,25,110,27],[110,28,110,30],[110,31,110,33],[110,34,110,35],[107,25,107,27],[107,28,107,30],[107,31,107,33],[107,34,107,35],[109,19,109,21],[109,22,109,24],[107,36,107,37],[107,2,107,18],[107,19,107,21],[107,22,107,24],[108,25,108,27],[108,28,108,30],[108,31,108,33],[108,34,108,35],[108,36,108,37],[105,36,105,37],[106,0,106,1],[106,2,106,18],[106,19,106,21],[106,22,106,24],[106,25,106,27],[106,28,106,30],[105,0,105,1],[105,2,105,18],[105,19,105,21],[105,22,105,24],[104,0,104,1],[104,2,104,18],[104,19,104,21],[104,22,104,24],[104,25,104,27],[105,25,105,27],[105,28,105,30],[105,31,105,33],[105,34,105,35],[101,36,101,37],[102,0,102,1],[102,2,102,18],[102,19,102,21],[102,22,102,24],[102,25,102,27],[103,25,103,27],[103,28,103,30],[103,31,103,33],[103,34,103,35],[101,0,101,1],[101,2,101,18],[101,19,101,21],[101,22,101,24],[103,36,103,37],[103,0,103,1],[103,2,103,18],[103,19,103,21],[103,22,103,24],[100,0,100,1],[100,2,100,18],[100,19,100,21],[100,22,100,24],[100,25,100,27],[101,25,101,27],[101,28,101,30],[101,31,101,33],[101,34,101,35],[97,0,97,1],[97,2,97,18],[97,19,97,21],[97,22,97,24],[99,0,99,1],[99,2,99,18],[99,19,99,21],[99,22,99,24],[97,36,97,37],[98,0,98,1],[98,2,98,18],[98,34,98,35],[98,36,98,37],[97,25,97,27],[99,25,99,27],[99,28,99,30],[99,31,99,33],[99,34,99,35],[99,36,99,37],[95,36,95,37],[96,25,96,27],[96,28,96,30],[96,31,96,33],[96,34,96,35],[96,36,96,37],[95,25,95,27],[95,34,95,35],[97,28,97,30],[97,31,97,33],[97,34,97,35],[96,0,96,1],[96,2,96,18],[96,19,96,21],[96,22,96,24],[95,28,95,30],[95,31,95,33],[95,0,95,1],[95,2,95,18],[95,19,95,21],[95,22,95,24],[86,29,86,32],[86,33,86,37],[86,1,86,4],[86,5,86,9],[86,10,86,13],[86,14,86,18],[94,31,94,33],[94,34,94,35],[93,34,93,35],[93,36,93,37],[87,28,87,36],[87,9,87,17],[88,5,88,17],[88,24,88,36],[94,0,94,1],[94,2,94,18],[94,19,94,21],[94,22,94,24],[94,36,94,37],[93,25,93,27],[93,28,93,30],[93,31,93,33],[94,25,94,27],[94,28,94,30],[82,20,82,31],[82,32,82,36],[83,8,83,13],[83,17,83,18],[83,27,83,32],[83,36,83,37],[82,1,82,12],[82,13,82,17],[83,14,83,16],[83,33,83,35],[52,2,54,2],[52,3,54,16],[52,20,55,37],[55,3,57,16],[55,2,57,2],[58,3,60,16],[58,2,60,2],[12,20,15,37],[13,2,15,2],[13,3,15,16],[10,2,12,2],[16,2,18,2],[16,3,18,16],[16,20,19,37],[40,3,42,16],[28,2,30,2],[28,3,30,16],[25,3,27,16],[28,20,31,37],[31,2,33,2],[31,3,33,16],[32,20,35,37],[34,2,36,2],[34,3,36,16],[40,20,43,37],[43,2,45,2],[43,3,45,16],[44,20,47,37],[46,2,48,2],[46,3,48,16],[48,20,51,37],[19,2,21,2],[19,3,21,16],[20,20,23,37],[22,2,24,2],[22,3,24,16],[24,20,27,37],[25,2,27,2],[36,20,39,37],[37,2,39,2],[37,3,39,16],[40,2,42,2],[120,5,120,10],[120,15,120,18],[120,24,120,29],[120,34,120,37],[98,31,98,33],[98,19,98,21],[98,22,98,24],[98,25,98,27],[98,28,98,30],[100,28,100,30],[100,31,100,33],[100,34,100,35],[100,36,100,37],[102,28,102,30],[102,31,102,33],[102,34,102,35],[102,36,102,37],[104,28,104,30],[104,31,104,33],[104,34,104,35],[104,36,104,37],[106,31,106,33],[106,34,106,35],[106,36,106,37]]}
[null,{"$error":"#VALUE!"},null,null,null,null,null,null,null,null,null,null,null,null,null,null,null,null,null,null,null,null,"Qualitätssicherung"]
[{"$f":"IF('Cover Sheet - Deckblatt'!AS1=1,\"Test results\",\"Prüfergebnisse\")","v":"Prüfergebnisse"}]
[]
[]
[null,null,null,{"$f":"IF('Cover Sheet - Deckblatt'!AS1=1,\"Appendices\",\"Anlagen\")","v":"Anlagen"},null,null,null,null,null,null,null,null,null,null,null,null,null,null,null,null,{"$f":"IF('Cover Sheet - Deckblatt'!AS1=1,\"Initial sample inspection report VDA\",\"Erstmusterprüfbericht VDA\")","v":"Erstmusterprüfbericht VDA"}]
[]
[]
[null,null,"01",{"$f":"IF('Cover Sheet - Deckblatt'!AS1=1,\"Dimensional Check\",\"Maßprüfung\")","v":"Maßprüfung"}]
[null,null,null,null,null,null,null,null,null,null,null,null,null,null,null,null,null,null,null,null,{"$f":"IF('Cover Sheet - Deckblatt'!AS1=1,\"Initial sample inspection\",\"Erstbemusterung\")","v":"Erstbemusterung"}]
[]
[null,null,"02",{"$f":"IF('Cover Sheet - Deckblatt'!AS1=1,\"Functional Test\",\"Funktionsprüfung\")","v":"Funktionsprüfung"}]
[]
[null,null,null,null,null,null,null,null,null,null,null,null,null,null,null,null,null,null,null,null,{"$f":"IF('Cover Sheet - Deckblatt'!AS1=1,\"re-sampling\",\"Nachbemusterung\")","v":"Nachbemusterung"}]
[null,null,"03",{"$f":"IF('Cover Sheet - Deckblatt'!AS1=1,\"Material Test\",\"Werkstoffprüfung\")","v":"Werkstoffprüfung"}]
[]
[]
[null,null,"04",{"$f":"IF('Cover Sheet - Deckblatt'!AS1=1,\"Haptics\",\"Haptikprüfung\")","v":"Haptikprüfung"},null,null,null,null,null,null,null,null,null,null,null,null,null,null,null,null,{"$f":"IF('Cover Sheet - Deckblatt'!AS1=1,\"New Part\",\"Neuteil\")","v":"Neuteil"}]
[]
[]
[null,null,"05",{"$f":"IF('Cover Sheet - Deckblatt'!AS1=1,\"Acoustics\",\"Akustikprüfung\")","v":"Akustikprüfung"}]
[null,null,null,null,null,null,null,null,null,null,null,null,null,null,null,null,null,null,null,null,{"$f":"IF('Cover Sheet - Deckblatt'!AS1=1,\"Product modification\",\"Produktänderung\")","v":"Produktänderung"}]
[]
[null,null,"06",{"$f":"IF('Cover Sheet - Deckblatt'!AS1=1,\"Odors\",\"Geruchsprüfung\")","v":"Geruchsprüfung"}]
[]
[null,null,null,null,null,null,null,null,null,null,null,null,null,null,null,null,null,null,null,null,{"$f":"IF('Cover Sheet - Deckblatt'!AS1=1,\"Production transfer\",\"Produktionsverlagerung\")","v":"Produktionsverlagerung"}]
[null,null,"07",{"$f":"IF('Cover Sheet - Deckblatt'!AS1=1,\"Appearance\",\"Aussehensprüfung\")","v":"Aussehensprüfung"}]
[]
[]
[null,null,"08",{"$f":"IF('Cover Sheet - Deckblatt'!AS1=1,\"Surface Check\",\"Oberflächenprüfung\")","v":"Oberflächenprüfung"},null,null,null,null,null,null,null,null,null,null,null,null,null,null,null,null,{"$f":"IF('Cover Sheet - Deckblatt'!AS1=1,\"Changes in the production procedures\",\"Änderung von Produktionsverfahren\")","v":"Änderung von Produktionsverfahren"}]
[]
[]
[null,null,"09",{"$f":"IF('Cover Sheet - Deckblatt'!AS1=1,\"EMV Test\",\"EMV - Prüfung\")","v":"EMV - Prüfung"}]
[null,null,null,null,null,null,null,null,null,null,null,null,null,null,null,null,null,null,null,null,{"$f":"IF('Cover Sheet - Deckblatt'!AS1=1,\"Long production pause\",\"längeres Aussetzen der Fertigung\")","v":"längeres Aussetzen der Fertigung"}]
[]
[null,null,"10",{"$f":"IF('Cover Sheet - Deckblatt'!AS1=1,\"Reliability Test\",\"Zuverlässigkeitsprüfung\")","v":"Zuverlässigkeitsprüfung"}]
[]
[null,null,null,null,null,null,null,null,null,null,null,null,null,null,null,null,null,null,null,null,{"$f":"IF('Cover Sheet - Deckblatt'!AS1=1,\"New subcontractor\",\"neuer Unterlieferant\")","v":"neuer Unterlieferant"}]
[null,null,"11",{"$f":"IF('Cover Sheet - Deckblatt'!AS1=1,\"Design - FMEA\",\"Design - FMEA\")","v":"Design - FMEA"}]
[]
[]
[null,null,"12",{"$f":"IF('Cover Sheet - Deckblatt'!AS1=1,\"Design Release\",\"Konstruktionsfreigabe\")","v":"Konstruktionsfreigabe"},null,null,null,null,null,null,null,null,null,null,null,null,null,null,null,null,{"$f":"IF('Cover Sheet - Deckblatt'!AS1=1,\"Product with DwSpA\",\"Produkt mit DmbA\")","v":"Produkt mit DmbA"}]
[]
[]
[null,null,"13",{"$f":"IF('Cover Sheet - Deckblatt'!AS1=1,\"Process FMEA\",\"Prozess - FMEA\")","v":"Prozess - FMEA"}]
[null,null,null,null,null,null,null,null,null,null,null,null,null,null,null,null,null,null,null,null,{"$f":"IF('Cover Sheet - Deckblatt'!AS1=1,\"Production / Inspection and Test Plan prepared\",\"Fertigungs-/Prüfplan erstellt\")","v":"Fertigungs-/Prüfplan erstellt"}]
[]
[null,null,"14",{"$f":"IF('Cover Sheet - Deckblatt'!AS1=1,\"Process Flow Chart\",\"Prozessablaufdiagramm\")","v":"Prozessablaufdiagramm"}]
[]
[null,null,null,null,null,null,null,null,null,null,null,null,null,null,null,null,null,null,null,null,{"$f":"IF('Cover Sheet - Deckblatt'!AS1=1,\"FMEA carried out\",\"FMEA durchgeführt\")","v":"FMEA durchgeführt"}]
[null,null,"15",{"$f":"IF('Cover Sheet - Deckblatt'!AS1=1,\"Control Plan\",\"Produktionslenkungsplan\")","v":"Produktionslenkungsplan"}]
[]
[]
[null,null,"16",{"$f":"IF('Cover Sheet - Deckblatt'!AS1=1,\"Peocess Capability Evidence\",\"Prozessfähigkeitsnachweis\")","v":"Prozessfähigkeitsnachweis"},null,null,null,null,null,null,null,null,null,null,null,null,null,null,null,null,{"$f":"IF('Cover Sheet - Deckblatt'!AS1=1,\"Test Report other samples\",\"Prüfbericht, sonstige Muster\")","v":"Prüfbericht, sonstige Muster"}]
[]
[]
[null,null,"17",{"$f":"IF('Cover Sheet - Deckblatt'!AS1=1,\"Inspection and Test Equipment List\",\"Prüfmittelliste\")","v":"Prüfmittelliste"}]
[]
[]
[null,null,"18",{"$f":"IF('Cover Sheet - Deckblatt'!AS1=1,\"Evidance of Inspection and Test Equipment Capability\",\"Prüfmittelfähigkeitsnachweis\")","v":"Prüfmittelfähigkeitsnachweis"}]
[]
[]
[null,null,"19",{"$f":"IF('Cover Sheet - Deckblatt'!AS1=1,\"EU-Data Safety Sheet\",\"EU-Datensicherheitsblatt\")","v":"EU-Datensicherheitsblatt"}]
[]
[]
[null,null,"20",{"$f":"IF('Cover Sheet - Deckblatt'!AS1=1,\"Material data sheet IMDS\",\"Materialdatenblatt IMDS\")","v":"Materialdatenblatt IMDS"}]
[]
[]
[null,null,"21",{"$f":"IF('Cover Sheet - Deckblatt'!AS1=1,\"Packaging\",\"Transportmittel / Verpackung\")","v":"Transportmittel / Verpackung"}]
[]
[]
[null,null,"22",{"$f":"IF('Cover Sheet - Deckblatt'!AS1=1,\"Certificate\",\"Zertifikate\")","v":"Zertifikate"}]
[]
[]
[null,null,"23",{"$f":"IF('Cover Sheet - Deckblatt'!AS1=1,\"Process acceptance\",\"Prozessabnahme\")","v":"Prozessabnahme"}]
[]
[]
[null,null,"24",{"$f":"IF('Cover Sheet - Deckblatt'!AS1=1,\"Others\",\"Sontiges\")","v":"Sontiges"}]
[]
[]
[]
[]
[]
[null,{"$f":"IF('Cover Sheet - Deckblatt'!AS1=1,\"Identification No. Supplier:\",\"Kennnummer Lieferant:\")","v":"Kennnummer Lieferant:"},null,null,null,null,null,null,null,null,null,null,null,{"$f":"IF('Cover Sheet - Deckblatt'!P29=\"\",\"\",'Cover Sheet - Deckblatt'!P29)","v":""},null,null,null,null,null,null,{"$f":"IF('Cover Sheet - Deckblatt'!AS1=1,\"Identification No. Customer:\",\"Kennnumer Kunde:\")","v":"Kennnumer Kunde:"},null,null,null,null,null,null,null,null,null,null,null,{"$f":"IF('Cover Sheet - Deckblatt'!AM29=\"\",\"\",'Cover Sheet - Deckblatt'!AM29)","v":""}]
[null,{"$f":"IF('Cover Sheet - Deckblatt'!AS1=1,\"Test Report No.:\",\"Prüfberichtsnummer:\")","v":"Prüfberichtsnummer:"},null,null,null,null,null,null,{"$f":"IF('Cover Sheet - Deckblatt'!I30=\"\",\"\",'Cover Sheet - Deckblatt'!I30)","v":""},null,null,null,null,null,{"$f":"IF('Cover Sheet - Deckblatt'!AS1=1,\"Revision:\",\"Version:\")","v":"Version:"},null,null,{"$f":"IF('Cover Sheet - Deckblatt'!U30=\"\",\"\",'Cover Sheet - Deckblatt'!U30)","v":""},null,null,{"$f":"IF('Cover Sheet - Deckblatt'!AS1=1,\"Test Report No.:\",\"Prüfberichtsnummer:\")","v":"Prüfberichtsnummer:"},null,null,null,null,null,null,{"$f":"IF('Cover Sheet - Deckblatt'!AB30=\"\",\"\",'Cover Sheet - Deckblatt'!AB30)","v":""},null,null,null,null,null,{"$f":"IF('Cover Sheet - Deckblatt'!AS1=1,\"Revision:\",\"Version:\")","v":"Version:"},null,null,{"$f":"IF('Cover Sheet - Deckblatt'!AR30=\"\",\"\",'Cover Sheet - Deckblatt'!AR30)","v":""}]
[null,{"$f":"IF('Cover Sheet - Deckblatt'!AS1=1,\"Subject/Drawing/Revision No./ Status/Date:\",\"Sachnummer/ Zeichnungsnummer/Änderungs-Nr./ Stand/ Datum:\")","v":"Sachnummer/ Zeichnungsnummer/Änderungs-Nr./ Stand/ Datum:"},null,null,null,null,null,null,null,null,null,null,null,null,null,null,null,null,null,null,{"$f":"IF('Cover Sheet - Deckblatt'!AS1=1,\"Subject/Drawing/Revision No./ Status/Date:\",\"Sachnummer/ Zeichnungsnummer/Änderungs-Nr./ Stand/ Datum:\")","v":"Sachnummer/ Zeichnungsnummer/Änderungs-Nr./ Stand/ Datum:"}]
[]
[null,{"$f":"IF('Cover Sheet - Deckblatt'!I31=\"\",\"\",'Cover Sheet - Deckblatt'!I31)","v":""},null,null,null,{"$f":"IF('Cover Sheet - Deckblatt'!I32=\"\",\"\",'Cover Sheet - Deckblatt'!I32)","v":" "},null,null,null,null,{"$f":"IF('Cover Sheet - Deckblatt'!I34=\"\",\"\",'Cover Sheet - Deckblatt'!I34)","v":" "},null,null,null,{"$f":"IF('Cover Sheet - Deckblatt'!I33=\"\",\"\",'Cover Sheet - Deckblatt'!I33)","v":""},null,null,null,null,null,null,null,null,null,null,null,null,null,null,{"$f":"IF('Cover Sheet - Deckblatt'!AI34=\"\",\"\",'Cover Sheet - Deckblatt'!AI34)","v":""},null,null,null,{"$f":"IF('Cover Sheet - Deckblatt'!AI33=\"\",\"\",'Cover Sheet - Deckblatt'!AI33)","v":""}]
[]
[null,{"$f":"IF('Cover Sheet - Deckblatt'!AS1=1,\"Designation:\",\"Benennung:\")","v":"Benennung:"},null,null,null,{"$f":"IF('Cover Sheet - Deckblatt'!I35=\"\",\"\",'Cover Sheet - Deckblatt'!I35)","v":""},null,null,null,null,null,null,null,null,null,null,null,null,null,null,{"$f":"IF('Cover Sheet - Deckblatt'!AS1=1,\"Designation:\",\"Benennung:\")","v":"Benennung:"},null,null,null,{"$f":"IF('Cover Sheet - Deckblatt'!AI35=\"\",\"\",'Cover Sheet - Deckblatt'!AI35)","v":""}]
[]
[]
["Ref.",null,{"$f":"IF('Cover Sheet - Deckblatt'!AS1=1,\"Requirements\",\"Forderungen\")","v":"Forderungen"},null,null,null,null,null,null,null,null,null,null,null,null,null,null,null,null,{"$f":"IF('Cover Sheet - Deckblatt'!AS1=1,\"IST-value supplier\",\"IST - Werte Lieferant\")","v":"IST - Werte Lieferant"},null,null,null,null,null,null,null,null,null,null,null,null,null,null,{"$f":"IF('Cover Sheet - Deckblatt'!AS1=1,\"evaluation\",\"Bewertung\")","v":"Bewertung"}]
[]
["Nr.",null,null,null,null,null,null,null,null,null,null,null,null,null,null,null,null,null,null,{"$f":"IF('Cover Sheet - Deckblatt'!AS1=1,\"value 1\",\"Wert 1\")","v":"Wert 1"},null,null,{"$f":"IF('Cover Sheet - Deckblatt'!AS1=1,\"value 2\",\"Wert 2\")","v":"Wert 2"},null,null,{"$f":"IF('Cover Sheet - Deckblatt'!AS1=1,\"value 3\",\"Wert 3\")","v":"Wert 3"},null,null,{"$f":"IF('Cover Sheet - Deckblatt'!AS1=1,\"value 4\",\"Wert 4\")","v":"Wert 4"},null,null,{"$f":"IF('Cover Sheet - Deckblatt'!AS1=1,\"value 5\",\"Wert 5\")","v":"Wert 5"},null,null,{"$f":"IF('Cover Sheet - Deckblatt'!AS1=1,\"ok\",\"i.O.\")","v":"i.O."},null,{"$f":"IF('Cover Sheet - Deckblatt'!AS1=1,\"not ok\",\"n. i. O.\")","v":"n. i. O."}]
[]
[]
[]
[]
[]
[]
[]
[]
[]
[]
[]
[]
[]
[]
[]
[]
[]
[null,{"$f":"IF('Cover Sheet - Deckblatt'!AS1=1,\"Confirmation Supplier\",\"Bestätigung Lieferant\")","v":"Bestätigung Lieferant"},null,null,null,null,null,null,null,null,null,null,null,null,null,null,null,null,null,null,{"$f":"IF('Cover Sheet - Deckblatt'!AS1=1,\"Desicion Customer\",\"Entscheidung Kunde\")","v":"Entscheidung Kunde"}]
[null,{"$f":"IF('Cover Sheet - Deckblatt'!AS1=1,\"Comments:\",\"Bemerkung\")","v":"Bemerkung"},null,null,null,null,null,null,null,null,null,null,null,null,null,null,null,null,null,null,{"$f":"IF('Cover Sheet - Deckblatt'!AS1=1,\"released\",\"frei\")","v":"frei"}]
[null,null,null,null,null,null,null,null,null,null,null,null,null,null,null,null,null,null,null,null,{"$f":"IF('Cover Sheet - Deckblatt'!AS1=1,\"Special release\",\"Sonderfreigabe\")","v":"Sonderfreigabe"}]
[null,null,null,null,null,null,null,null,null,null,null,null,null,null,null,null,null,null,null,null,{"$f":"IF('Cover Sheet - Deckblatt'!AS1=1,\"reject, re-sampling required\",\"abgelehnt, Nachbemusterung erforderlich\")","v":"abgelehnt, Nachbemusterung erforderlich"}]
[null,"Name:",null,null,null,null,null,{"$f":"IF('Cover Sheet - Deckblatt'!H45=\"\",\"\",'Cover Sheet - Deckblatt'!H45)","v":""},null,null,null,null,null,null,null,null,null,null,null,null,"Name:",null,null,null,null,null,{"$f":"IF('Cover Sheet - Deckblatt'!H59=\"\",\"\",'Cover Sheet - Deckblatt'!H59)","v":""}]
[null,{"$f":"IF('Cover Sheet - Deckblatt'!AS1=1,\"Department:\",\"Abteilung:\")","v":"Abteilung:"},null,null,null,null,null,{"$f":"IF('Cover Sheet - Deckblatt'!H46=\"\",\"\",'Cover Sheet - Deckblatt'!H46)","v":""},null,null,null,null,null,null,null,null,null,null,null,null,{"$f":"IF('Cover Sheet - Deckblatt'!AS1=1,\"Department:\",\"Abteilung:\")","v":"Abteilung:"},null,null,null,null,null,{"$f":"IF('Cover Sheet - Deckblatt'!H60=\"\",\"\",'Cover Sheet - Deckblatt'!H60)","v":""}]
[null,{"$f":"IF('Cover Sheet - Deckblatt'!AS1=1,\"Teleph./Fax/e-mail:\",\"Telefon/ Fax/ e-Mail:\")","v":"Telefon/ Fax/ e-Mail:"},null,null,null,null,null,{"$f":"IF('Cover Sheet - Deckblatt'!H47=\"\",\"\",'Cover Sheet - Deckblatt'!H47)","v":""},null,null,null,null,null,null,null,null,null,null,null,null,{"$f":"IF('Cover Sheet - Deckblatt'!AS1=1,\"Teleph./Fax/e-mail:\",\"Telefon/ Fax/ e-Mail:\")","v":"Telefon/ Fax/ e-Mail:"},null,null,null,null,null,{"$f":"IF('Cover Sheet - Deckblatt'!H61=\"\",\"\",'Cover Sheet - Deckblatt'!H61)","v":""}]
[]
[null,null,{"$f":"IF('Cover Sheet - Deckblatt'!C49=\"\",\"\",'Cover Sheet - Deckblatt'!C49)","v":""},null,null,null,null,null,null,null,null,null,null,null,null,null,null,null,null,null,null,{"$f":"IF('Cover Sheet - Deckblatt'!C63=\"\",\"\",'Cover Sheet - Deckblatt'!C63)","v":""}]
[null,null,null,{"$f":"IF('Cover Sheet - Deckblatt'!AS1=1,\"Date\",\"Datum\")","v":"Datum"},null,{"$f":"IF('Cover Sheet - Deckblatt'!F50=\"\",\"\",'Cover Sheet - Deckblatt'!F50)","v":" "},null,null,null,null,null,{"$f":"IF('Cover Sheet - Deckblatt'!AS1=1,\"Signature:\",\"Unterschrift:\")","v":"Unterschrift:"},null,null,null,{"$f":"IF('Cover Sheet - Deckblatt'!N50=\"\",\"\",'Cover Sheet - Deckblatt'!N50)","v":""},null,null,null,null,null,null,{"$f":"IF('Cover Sheet - Deckblatt'!AS1=1,\"Date\",\"Datum\")","v":"Datum"},null,null,null,null,null,null,null,{"$f":"IF('Cover Sheet - Deckblatt'!AS1=1,\"Signature:\",\"Unterschrift:\")","v":"Unterschrift:"}]

{"sheet":"Test Results No. 2","index":2,"n_rows":55,"n_cols":37,"rows_kept":55,"cut":false,"hidden":false,"merged":[[1,14,1,16],[1,33,1,35],[0,1,0,12],[0,13,0,17],[0,20,0,31],[4,24,4,28],[4,29,4,32],[4,33,4,37],[4,1,4,4],[4,5,4,9],[4,10,4,13],[4,14,4,18],[4,20,4,23],[0,32,0,36],[1,8,1,13],[1,17,1,18],[1,27,1,32],[1,36,1,37],[5,9,5,17],[5,28,5,36],[6,6,6,17],[6,25,6,36],[9,0,9,1],[9,2,10,18],[9,19,10,33],[9,34,9,37],[10,34,10,35],[10,36,10,37],[11,31,11,33],[11,34,11,35],[11,36,11,37],[12,0,12,1],[12,2,12,18],[12,19,12,21],[12,22,12,24],[12,25,12,27],[12,28,12,30],[12,31,12,33],[11,0,11,1],[11,2,11,18],[11,19,11,21],[11,22,11,24],[11,25,11,27],[11,28,11,30],[12,34,12,35],[12,36,12,37],[29,0,29,1],[29,2,29,18],[29,19,29,21],[29,22,29,24],[29,25,29,27],[29,28,29,30],[29,31,29,33],[29,34,29,35],[29,36,29,37],[30,0,30,1],[30,2,30,18],[30,19,30,21],[30,22,30,24],[30,25,30,27],[30,28,30,30],[30,31,30,33],[30,34,30,35],[30,36,30,37],[31,31,31,33],[31,34,31,35],[31,36,31,37],[32,0,32,1],[32,2,32,18],[32,19,32,21],[32,22,32,24],[32,25,32,27],[32,28,32,30],[32,31,32,33],[31,0,31,1],[31,2,31,18],[31,19,31,21],[31,22,31,24],[31,25,31,27],[31,28,31,30],[32,34,32,35],[32,36,32,37],[33,0,33,1],[33,2,33,18],[33,19,33,21],[33,22,33,24],[33,25,33,27],[33,28,33,30],[33,31,33,33],[33,34,33,35],[33,36,33,37],[34,0,34,1],[34,2,34,18],[34,19,34,21],[34,22,34,24],[34,25,34,27],[34,28,34,30],[34,31,34,33],[34,34,34,35],[34,36,34,37],[35,31,35,33],[35,34,35,35],[35,36,35,37],[36,0,36,1],[36,2,36,18],[36,19,36,21],[36,22,36,24],[36,25,36,27],[36,28,36,30],[36,31,36,33],[35,0,35,1],[35,2,35,18],[35,19,35,21],[35,22,35,24],[35,25,35,27],[35,28,35,30],[36,34,36,35],[36,36,36,37],[37,0,37,1],[37,2,37,18],[37,19,37,21],[37,22,37,24],[37,25,37,27],[37,28,37,30],[37,31,37,33],[37,34,37,35],[37,36,37,37],[38,0,38,1],[38,2,38,18],[38,19,38,21],[38,22,38,24],[38,25,38,27],[38,28,38,30],[38,31,38,33],[38,34,38,35],[38,36,38,37],[39,31,39,33],[39,34,39,35],[39,36,39,37],[40,0,40,1],[40,2,40,18],[40,19,40,21],[40,22,40,24],[40,25,40,27],[40,28,40,30],[40,31,40,33],[39,0,39,1],[39,2,39,18],[39,19,39,21],[39,22,39,24],[39,25,39,27],[39,28,39,30],[40,34,40,35],[40,36,40,37],[41,0,41,1],[41,2,41,18],[41,19,41,21],[41,22,41,24],[41,25,41,27],[41,28,41,30],[41,31,41,33],[41,34,41,35],[41,36,41,37],[42,0,42,1],[42,2,42,18],[42,19,42,21],[42,22,42,24],[42,25,42,27],[42,28,42,30],[42,31,42,33],[42,34,42,35],[42,36,42,37],[44,34,44,35],[44,36,44,37],[46,5,46,17],[46,35,46,37],[47,1,47,17],[47,35,47,37],[43,31,43,33],[43,34,43,35],[43,36,43,37],[44,0,44,1],[44,2,44,18],[44,19,44,21],[44,22,44,24],[44,25,44,27],[44,28,44,30],[44,31,44,33],[43,0,43,1],[43,2,43,18],[43,19,43,21],[43,22,43,24],[43,25,43,27],[43,28,43,30],[13,36,13,37],[14,0,14,1],[14,2,14,18],[14,19,14,21],[14,22,14,24],[14,25,14,27],[14,28,14,30],[14,31,14,33],[14,34,14,35],[14,36,14,37],[13,0,13,1],[13,2,13,18],[13,19,13,21],[13,22,13,24],[13,31,13,33],[13,34,13,35],[13,25,13,27],[13,28,13,30],[15,31,15,33],[15,34,15,35],[15,36,15,37],[16,0,16,1],[16,2,16,18],[16,19,16,21],[16,22,16,24],[16,25,16,27],[16,28,16,30],[16,31,16,33],[15,0,15,1],[15,2,15,18],[15,19,15,21],[15,22,15,24],[15,25,15,27],[15,28,15,30],[16,34,16,35],[16,36,16,37],[17,0,17,1],[17,2,17,18],[17,19,17,21],[17,22,17,24],[17,25,17,27],[17,28,17,30],[17,31,17,33],[17,34,17,35],[17,36,17,37],[18,0,18,1],[18,2,18,18],[18,19,18,21],[18,22,18,24],[18,25,18,27],[18,28,18,30],[18,31,18,33],[18,34,18,35],[18,36,18,37],[19,31,19,33],[19,34,19,35],[19,36,19,37],[20,0,20,1],[20,2,20,18],[20,19,20,21],[20,22,20,24],[20,25,20,27],[20,28,20,30],[20,31,20,33],[19,0,19,1],[19,2,19,18],[19,19,19,21],[19,22,19,24],[19,25,19,27],[19,28,19,30],[20,34,20,35],[20,36,20,37],[21,0,21,1],[21,2,21,18],[21,19,21,21],[21,22,21,24],[21,25,21,27],[21,28,21,30],[21,31,21,33],[21,34,21,35],[21,36,21,37],[22,0,22,1],[22,2,22,18],[22,19,22,21],[22,22,22,24],[22,25,22,27],[22,28,22,30],[22,31,22,33],[22,34,22,35],[22,36,22,37],[23,31,23,33],[23,34,23,35],[23,36,23,37],[24,0,24,1],[24,2,24,18],[24,19,24,21],[24,22,24,24],[24,25,24,27],[24,28,24,30],[24,31,24,33],[23,0,23,1],[23,2,23,18],[23,19,23,21],[23,22,23,24],[23,25,23,27],[23,28,23,30],[24,34,24,35],[24,36,24,37],[25,0,25,1],[25,2,25,18],[25,19,25,21],[25,22,25,24],[25,25,25,27],[25,28,25,30],[25,31,25,33],[25,34,25,35],[25,36,25,37],[26,0,26,1],[26,2,26,18],[26,19,26,21],[26,22,26,24],[26,25,26,27],[26,28,26,30],[26,31,26,33],[26,34,26,35],[26,36,26,37],[27,31,27,33],[27,34,27,35],[27,36,27,37],[28,0,28,1],[28,2,28,18],[28,19,28,21],[28,22,28,24],[28,25,28,27],[28,28,28,30],[28,31,28,33],[27,0,27,1],[27,2,27,18],[27,19,27,21],[27,22,27,24],[27,25,27,27],[27,28,27,30],[28,34,28,35],[28,36,28,37],[54,5,54,10],[54,15,54,18],[54,24,54,29],[54,34,54,37],[52,7,52,17],[52,26,52,36],[53,2,53,5],[53,8,53,16],[53,21,53,24],[53,27,53,35],[50,1,50,5],[50,7,50,17],[50,20,50,24],[50,26,50,36],[51,1,51,6],[51,7,51,17],[51,20,51,25],[51,26,51,36],[48,1,48,17],[48,35,48,37],[49,1,49,3],[49,7,49,17],[49,20,49,22],[49,26,49,36]]}
[null,{"$f":"IF('Cover Sheet - Deckblatt'!AS1=1,\"Identification No. Supplier:\",\"Kennnummer Lieferant:\")","v":"Kennnummer Lieferant:"},null,null,null,null,null,null,null,null,null,null,null,{"$f":"IF('Cover Sheet - Deckblatt'!P29=\"\",\"\",'Cover Sheet - Deckblatt'!P29)","v":""},null,null,null,null,null,null,{"$f":"IF('Cover Sheet - Deckblatt'!AS1=1,\"Identification No. Supplier:\",\"Kennnummer Lieferant:\")","v":"Kennnummer Lieferant:"},null,null,null,null,null,null,null,null,null,null,null,{"$f":"IF('Cover Sheet - Deckblatt'!AM29=\"\",\"\",'Cover Sheet - Deckblatt'!AM29)","v":""}]
[null,{"$f":"IF('Cover Sheet - Deckblatt'!AS1=1,\"Test Report No.:\",\"Prüfberichtsnummer:\")","v":"Prüfberichtsnummer:"},null,null,null,null,null,null,{"$f":"IF('Cover Sheet - Deckblatt'!I30=\"\",\"\",'Cover Sheet - Deckblatt'!I30)","v":""},null,null,null,null,null,{"$f":"IF('Cover Sheet - Deckblatt'!AS1=1,\"Revision:\",\"Version:\")","v":"Version:"},null,null,{"$f":"IF('Cover Sheet - Deckblatt'!U30=\"\",\"\",'Cover Sheet - Deckblatt'!U30)","v":""},null,null,{"$f":"IF('Cover Sheet - Deckblatt'!AS1=1,\"Test Report No.:\",\"Prüfberichtsnummer:\")","v":"Prüfberichtsnummer:"},null,null,null,null,null,null,{"$f":"IF('Cover Sheet - Deckblatt'!AI30=\"\",\"\",'Cover Sheet - Deckblatt'!AI30)","v":""},null,null,null,null,null,{"$f":"IF('Cover Sheet - Deckblatt'!AS1=1,\"Revision:\",\"Version:\")","v":"Version:"},null,null,{"$f":"IF('Cover Sheet - Deckblatt'!AR30=\"\",\"\",'Cover Sheet - Deckblatt'!AR30)","v":""}]
[null,{"$f":"IF('Cover Sheet - Deckblatt'!AS1=1,\"Subject/Drawing/Revision No./ Status/Date:\",\"Sachnummer/ Zeichnungsnummer/Änderungs-Nr./ Stand/ Datum:\")","v":"Sachnummer/ Zeichnungsnummer/Änderungs-Nr./ Stand/ Datum:"},null,null,null,null,null,null,null,null,null,null,null,null,null,null,null,null,null,null,{"$f":"IF('Cover Sheet - Deckblatt'!AS1=1,\"Subject/Drawing/Revision No./ Status/Date:\",\"Sachnummer/ Zeichnungsnummer/Änderungs-Nr./ Stand/ Datum:\")","v":"Sachnummer/ Zeichnungsnummer/Änderungs-Nr./ Stand/ Datum:"}]
[]
[null,{"$f":"IF('Cover Sheet - Deckblatt'!I31=\"\",\"\",'Cover Sheet - Deckblatt'!I31)","v":""},null,null,null,{"$f":"IF('Cover Sheet - Deckblatt'!I32=\"\",\"\",'Cover Sheet - Deckblatt'!I32)","v":" "},null,null,null,null,{"$f":"IF('Cover Sheet - Deckblatt'!I34=\"\",\"\",'Cover Sheet - Deckblatt'!I34)","v":" "},null,null,null,{"$f":"IF('Cover Sheet - Deckblatt'!I33=\"\",\"\",'Cover Sheet - Deckblatt'!I33)","v":""},null,null,null,null,null,null,null,null,null,{"$f":"IF('Cover Sheet - Deckblatt'!AI32=\"\",\"\",'Cover Sheet - Deckblatt'!AI32)","v":""},null,null,null,null,{"$f":"IF('Cover Sheet - Deckblatt'!AI34=\"\",\"\",'Cover Sheet - Deckblatt'!AI34)","v":""},null,null,null,{"$f":"IF('Cover Sheet - Deckblatt'!AI33=\"\",\"\",'Cover Sheet - Deckblatt'!AI33)","v":""}]
[]
[null,{"$f":"IF('Cover Sheet - Deckblatt'!AS1=1,\"Designation:\",\"Benennung:\")","v":"Benennung:"},null,null,null,null,{"$f":"IF('Cover Sheet - Deckblatt'!I35=\"\",\"\",'Cover Sheet - Deckblatt'!I35)","v":""},null,null,null,null,null,null,null,null,null,null,null,null,null,{"$f":"IF('Cover Sheet - Deckblatt'!AS1=1,\"Designation:\",\"Benennung:\")","v":"Benennung:"},null,null,null,null,{"$f":"IF('Cover Sheet - Deckblatt'!AI35=\"\",\"\",'Cover Sheet - Deckblatt'!AI35)","v":""}]
[]
[]
["Ref.",null,{"$f":"IF('Cover Sheet - Deckblatt'!AS1=1,\"Requirements\",\"Forderungen\")","v":"Forderungen"},null,null,null,null,null,null,null,null,null,null,null,null,null,null,null,null,{"$f":"IF('Cover Sheet - Deckblatt'!AS1=1,\"IST-value supplier\",\"IST - Werte Lieferant\")","v":"IST - Werte Lieferant"},null,null,null,null,null,null,null,null,null,null,null,null,null,null,{"$f":"IF('Cover Sheet - Deckblatt'!AS1=1,\"evaluation\",\"Bewertung\")","v":"Bewertung"}]
[]
["Nr.",null,null,null,null,null,null,null,null,null,null,null,null,null,null,null,null,null,null,{"$f":"IF('Cover Sheet - Deckblatt'!AS1=1,\"value 1\",\"Wert 1\")","v":"Wert 1"},null,null,{"$f":"IF('Cover Sheet - Deckblatt'!AS1=1,\"value 2\",\"Wert 2\")","v":"Wert 2"},null,null,{"$f":"IF('Cover Sheet - Deckblatt'!AS1=1,\"value 3\",\"Wert 3\")","v":"Wert 3"},null,null,{"$f":"IF('Cover Sheet - Deckblatt'!AS1=1,\"value 4\",\"Wert 4\")","v":"Wert 4"},null,null,{"$f":"IF('Cover Sheet - Deckblatt'!AS1=1,\"value 5\",\"Wert 5\")","v":"Wert 5"},null,null,{"$f":"IF('Cover Sheet - Deckblatt'!AS1=1,\"ok\",\"i.O.\")","v":"i.O."},null,{"$f":"IF('Cover Sheet - Deckblatt'!AS1=1,\"not ok\",\"n. i. O.\")","v":"n. i. O."}]
[]
[]
[]
[]
[]
[]
[]
[]
[]
[]
[]
[]
[]
[]
[]
[]
[]
[]
[]
[]
[]
[]
[]
[]
[]
[]
[]
[]
[]
[]
[]
[]
[]
[null,{"$f":"IF('Cover Sheet - Deckblatt'!AS1=1,\"Confirmation Supplier\",\"Bestätigung Lieferant\")","v":"Bestätigung Lieferant"},null,null,null,null,null,null,null,null,null,null,null,null,null,null,null,null,null,null,{"$f":"IF('Cover Sheet - Deckblatt'!AS1=1,\"Desicion Customer\",\"Entscheidung Kunde\")","v":"Entscheidung Kunde"}]
[null,{"$f":"IF('Cover Sheet - Deckblatt'!AS1=1,\"Comments:\",\"Bemerkung\")","v":"Bemerkung"},null,null,null,null,null,null,null,null,null,null,null,null,null,null,null,null,null,null,{"$f":"IF('Cover Sheet - Deckblatt'!AS1=1,\"released\",\"frei\")","v":"frei"}]
[null,null,null,null,null,null,null,null,null,null,null,null,null,null,null,null,null,null,null,null,{"$f":"IF('Cover Sheet - Deckblatt'!AS1=1,\"Special release\",\"Sonderfreigabe\")","v":"Sonderfreigabe"}]
[null,null,null,null,null,null,null,null,null,null,null,null,null,null,null,null,null,null,null,null,{"$f":"IF('Cover Sheet - Deckblatt'!AS1=1,\"reject, re-sampling required\",\"abgelehnt, Nachbemusterung erforderlich\")","v":"abgelehnt, Nachbemusterung erforderlich"}]
[null,"Name:",null,null,null,null,null,{"$f":"IF('Cover Sheet - Deckblatt'!H45=\"\",\"\",'Cover Sheet - Deckblatt'!H45)","v":""},null,null,null,null,null,null,null,null,null,null,null,null,"Name:",null,null,null,null,null,{"$f":"IF('Cover Sheet - Deckblatt'!H59=\"\",\"\",'Cover Sheet - Deckblatt'!H59)","v":""}]
[null,{"$f":"IF('Cover Sheet - Deckblatt'!AS1=1,\"Department:\",\"Abteilung:\")","v":"Abteilung:"},null,null,null,null,null,{"$f":"IF('Cover Sheet - Deckblatt'!H46=\"\",\"\",'Cover Sheet - Deckblatt'!H46)","v":""},null,null,null,null,null,null,null,null,null,null,null,null,{"$f":"IF('Cover Sheet - Deckblatt'!AS1=1,\"Department:\",\"Abteilung:\")","v":"Abteilung:"},null,null,null,null,null,{"$f":"IF('Cover Sheet - Deckblatt'!H60=\"\",\"\",'Cover Sheet - Deckblatt'!H60)","v":""}]
[null,{"$f":"IF('Cover Sheet - Deckblatt'!AS1=1,\"Teleph./Fax/e-mail:\",\"Telefon/ Fax/ e-Mail:\")","v":"Telefon/ Fax/ e-Mail:"},null,null,null,null,null,{"$f":"IF('Cover Sheet - Deckblatt'!H47=\"\",\"\",'Cover Sheet - Deckblatt'!H47)","v":""},null,null,null,null,null,null,null,null,null,null,null,null,{"$f":"IF('Cover Sheet - Deckblatt'!AS1=1,\"Teleph./Fax/e-mail:\",\"Telefon/ Fax/ e-Mail:\")","v":"Telefon/ Fax/ e-Mail:"},null,null,null,null,null,{"$f":"IF('Cover Sheet - Deckblatt'!H61=\"\",\"\",'Cover Sheet - Deckblatt'!H61)","v":""}]
[]
[null,null,{"$f":"IF('Cover Sheet - Deckblatt'!C49=\"\",\"\",'Cover Sheet - Deckblatt'!C49)","v":""},null,null,null,null,null,null,null,null,null,null,null,null,null,null,null,null,null,null,{"$f":"IF('Cover Sheet - Deckblatt'!C63=\"\",\"\",'Cover Sheet - Deckblatt'!C63)","v":""}]
[null,null,null,{"$f":"IF('Cover Sheet - Deckblatt'!AS1=1,\"Date\",\"Datum\")","v":"Datum"},null,{"$f":"IF('Cover Sheet - Deckblatt'!F50=\"\",\"\",'Cover Sheet - Deckblatt'!F50)","v":" "},null,null,null,null,null,{"$f":"IF('Cover Sheet - Deckblatt'!AS1=1,\"Signature:\",\"Unterschrift:\")","v":"Unterschrift:"},null,null,null,{"$f":"IF('Cover Sheet - Deckblatt'!N50=\"\",\"\",'Cover Sheet - Deckblatt'!N50)","v":""},null,null,null,null,null,null,{"$f":"IF('Cover Sheet - Deckblatt'!AS1=1,\"Date\",\"Datum\")","v":"Datum"},null,null,null,null,null,null,null,{"$f":"IF('Cover Sheet - Deckblatt'!AS1=1,\"Signature:\",\"Unterschrift:\")","v":"Unterschrift:"}]

{"sheet":"Values","index":3,"n_rows":2,"n_cols":6,"rows_kept":2,"cut":false,"hidden":false,"merged":[]}
[]
[null,"Number ","Type","Value","Min","Max"]